[Event "55th Rubinstein Memorial-A 2019"]
[Site "Polanica-Zdroj"]
[Date "2019.08.22"]
[Round "6.24"]
[White "Zabrzanska, Weronika"]
[Black "Jankowiak, Piotr"]
[Result "0-1"]
[ECO "C50"]
[WhiteElo "1770"]
[BlackElo "2033"]
[Annotator "NA"]
[PlyCount "108"]
[EventDate "2019.08.17"]
[EventType "swiss"]
[EventCountry "POL"]
[SourceTitle "playchess.com"]
[Source "ChessBase"]
[SourceQuality "1"]
[TimeControl "40/5400+30:1800+30"]

1. e4 {[%emt 0:00:00]} e5 {[%emt 0:00:00]} 2. Nf3 {[%emt 0:00:00]} Nc6 {[%emt 0:00:00]} 3. Bc4 {[%emt 0:00:00]} Bc5 {[%emt 0:00:00]} 4. d3 {[%emt 0:00:26]} Nf6 {[%emt 0:00:30]} 5. c3 {[%emt 0:00:10]} O-O {[%emt 0:00:11]} 6. O-O {[%emt 0:00:16]} d5 {[%emt 0:00:16]} 7. exd5 {[%emt 0:00:43]} Nxd5 {[%emt 0:00:08]} 8. Nbd2 {[%emt 0:06:21]} Bg4 {[%emt 0:04:37]} 9. Ne4 {[%emt 0:04:01]} Be7 {[%emt 0:01:19]} 10. h3 {[%emt 0:01:09]} Bh5 {[%emt 0:06:16]} 11. Ng3 {[%emt 0:05:00]} Bg6 {[%emt 0:04:55]} 12. Re1 {[%emt 0:04:55]} Bf6 {[%emt 0:17:36]} 13. Ne4 {[%emt 0:04:17]} Be7 {[%emt 0:12:13]} 14. Ng3 {[%emt 0:04:56]} Nb6 {[%emt 0:02:06]} 15. Bb5 {[%emt 0:00:41]} f6 {[%emt 0:02:46]} 16. d4 {[%emt 0:07:45]} Be8 {[%emt 0:19:01]} 17. Nf5 {[%emt 0:13:46]} Bd6 18. dxe5 {[%emt 0:10:32]} Nxe5 {[%emt 0:04:21]} 19. Nxd6 {[%emt 0:10:45]} Qxd6 {[%emt 0:00:57]} 20. Qxd6 {[%emt 0:00:43]} Nxf3+ {[%emt 0:00:27]} 21. gxf3 {[%emt 0:00:06]} cxd6 {[%emt 0:00:04]} 22. Bxe8 {[%emt 0:00:33]} Rfxe8 {[%emt 0:00:27]} 23. Bf4 {[%emt 0:00:24]} Nc4 {[%emt 0:02:25]} 24. b3 {[%emt 0:01:35]} Ne5 {[%emt 0:00:11]} 25. Bxe5 {[%emt 0:00:31]} dxe5 {[%emt 0:02:58]} 26. Red1 {[%emt 0:01:45]} Red8 {[%emt 0:00:11]} 27. Kf1 {[%emt 0:00:27]} Kf7 {[%emt 0:00:41]} 28. Ke2 {[%emt 0:00:10]} Ke6 {[%emt 0:00:29]} 29. Ke3 {[%emt 0:00:58]} g5 {[%emt 0:08:03]} 30. c4 {[%emt 0:02:07]} Rac8 {[%emt 0:01:28]} 31. a3 {[%emt 0:02:14]} h5 {[%emt 0:00:50]} 32. Rac1 {[%emt 0:00:51]} a6 {[%emt 0:01:56]} 33. Ke2 {[%emt 0:04:04]} Kf5 {[%emt 0:02:05]} 34. Ke3 {[%emt 0:02:32]} h4 {[%emt 0:01:17]} 35. Rb1 {[%emt 0:03:23]} Rd4 36. Ke2 {[%emt 0:07:09]} Kf4 {[%emt 0:04:06]} 37. Rg1 {[%emt 0:02:05]} Rcd8 {[%emt 0:00:56]} 38. Rg4+ {[%emt 0:00:49]} Kf5 {[%emt 0:00:06]} 39. Rxd4 {[%emt 0:00:32]} exd4 {[%emt 0:02:42]} 40. Rd1 {[%emt 0:00:00]} Re8+ {[%emt 0:00:00]} 41. Kf1 {[%emt 0:01:20]} Rd8 {[%emt 0:10:23]} 42. Rd3 {[%emt 0:00:21]} Ke5 {[%emt 0:00:51]} 43. Ke2 {[%emt 0:02:13]} f5 44. Kf1 {[%emt 0:01:53]} Rc8 {[%emt 0:06:24]} 45. Rd2 {[%emt 0:02:05]} b5 {[%emt 0:01:19]} 46. Re2+ {[%emt 0:01:38]} Kf4 {[%emt 0:00:47]} 47. Rd2 {[%emt 0:00:32]} Rd8 {[%emt 0:09:07]} 48. cxb5 {[%emt 0:02:23]} axb5 {[%emt 0:00:03]} 49. Rd3 {[%emt 0:00:12]} Ke5 {[%emt 0:00:36]} 50. Ke2 {[%emt 0:00:17]} Ra8 {[%emt 0:01:41]} 51. b4 {[%emt 0:00:33]} Kd5 {[%emt 0:00:42]} 52. Kd1 {[%emt 0:02:37]} Kc4 {[%emt 0:00:23]} 53. Kd2 {[%emt 0:04:55]} Re8 {[%emt 0:01:11]} 54. a4 {[%emt 0:00:21]} bxa4 {[%emt 0:00:26]} 0-1

[Event "55th Rubinstein Memorial-A 2019"]
[Site "Polanica-Zdroj"]
[Date "2019.08.22"]
[Round "6.25"]
[White "Derylo, Kamil"]
[Black "Galant, Ireneusz"]
[Result "1-0"]
[ECO "B32"]
[WhiteElo "2030"]
[BlackElo "1774"]
[Annotator "NA"]
[PlyCount "127"]
[EventDate "2019.08.17"]
[EventType "swiss"]
[EventCountry "POL"]
[SourceTitle "playchess.com"]
[Source "ChessBase"]
[SourceQuality "1"]
[TimeControl "40/5400+30:1800+30"]

1. e4 {[%emt 0:00:00]} c5 {[%emt 0:00:00]} 2. Nf3 {[%emt 0:00:00]} Nc6 {[%emt 0:00:00]} 3. d4 {[%emt 0:00:19]} cxd4 {[%emt 0:00:00]} 4. Nxd4 {[%emt 0:00:14]} e5 {[%emt 0:00:35]} 5. Nb5 {[%emt 0:02:14]} a6 {[%emt 0:01:32]} 6. Nd6+ {[%emt 0:00:55]} Bxd6 {[%emt 0:00:09]} 7. Qxd6 {[%emt 0:00:19]} Qe7 {[%emt 0:00:52]} 8. Qd3 {[%emt 0:09:13]} Nf6 {[%emt 0:02:52]} 9. c3 {[%emt 0:01:43]} d6 {[%emt 0:02:32]} 10. g3 {[%emt 0:01:34]} h6 {[%emt 0:02:04]} 11. Bg2 {[%emt 0:00:32]} Be6 {[%emt 0:00:19]} 12. Be3 {[%emt 0:03:10]} O-O {[%emt 0:00:33]} 13. O-O {[%emt 0:00:52]} b5 {[%emt 0:06:18]} 14. Nd2 {[%emt 0:06:37]} d5 {[%emt 0:13:43]} 15. exd5 {[%emt 0:08:50]} Nxd5 {[%emt 0:01:05]} 16. a4 {[%emt 0:15:58]} Rab8 17. axb5 {[%emt 0:00:30]} axb5 18. Ra6 Qb7 {[%emt 0:31:57]} 19. Rfa1 {[%emt 0:01:43]} Rfd8 {[%emt 0:00:59]} 20. Qe2 Qd7 {[%emt 0:15:52]} 21. Bc5 {[%emt 0:10:50]} Bg4 {[%emt 0:02:34]} 22. f3 {[%emt 0:00:55]} Bf5 {[%emt 0:02:32]} 23. Ne4 {[%emt 0:01:59]} Nc7 {[%emt 0:02:54]} 24. Rb6 {[%emt 0:03:11]} Ra8 {[%emt 0:00:38]} 25. Re1 {[%emt 0:01:20]} Qd5 {[%emt 0:02:09]} 26. Bf2 {[%emt 0:03:23]} Bxe4 {[%emt 0:03:49]} 27. fxe4 {[%emt 0:03:11]} Qd7 {[%emt 0:00:51]} 28. Qc2 {[%emt 0:01:30]} Na5 {[%emt 0:00:27]} 29. Bf1 {[%emt 0:03:39]} Qd2 {[%emt 0:00:50]} 30. Qxd2 {[%emt 0:01:17]} Rxd2 {[%emt 0:00:06]} 31. b4 {[%emt 0:02:27]} Nb3 {[%emt 0:01:01]} 32. Rb7 {[%emt 0:02:39]} Ne6 {[%emt 0:01:04]} 33. Rb1 {[%emt 0:06:26]} Ra3 {[%emt 0:01:57]} 34. Be1 {[%emt 0:04:08]} Rda2 35. Rd1 {[%emt 0:04:07]} Ng5 {[%emt 0:00:48]} 36. Bg2 {[%emt 0:00:28]} Re2 {[%emt 0:00:56]} 37. h4 {[%emt 0:01:19]} Raa2 {[%emt 0:02:52]} 38. Bh1 {[%emt 0:00:40]} Nh3+ {[%emt 0:00:31]} 39. Kf1 {[%emt 0:00:05]} Rf2+ {[%emt 0:00:06]} 40. Bxf2 {[%emt 0:00:00]} Rxf2+ {[%emt 0:00:00]} 41. Ke1 {[%emt 0:00:08]} Rc2 {[%emt 0:03:10]} 42. Bf3 {[%emt 0:08:40]} Ng1 {[%emt 0:00:39]} 43. Rd8+ {[%emt 0:04:14]} Kh7 {[%emt 0:00:05]} 44. Bg4 {[%emt 0:00:36]} Kg6 {[%emt 0:00:51]} 45. Kf1 {[%emt 0:00:59]} Rc1+ {[%emt 0:04:14]} 46. Rd1 {[%emt 0:01:04]} Rxc3 {[%emt 0:00:09]} 47. Bf5+ {[%emt 0:01:12]} Kh5 {[%emt 0:00:08]} 48. Kxg1 {[%emt 0:00:29]} g6 {[%emt 0:00:10]} 49. Bd7 {[%emt 0:01:21]} Nd4 {[%emt 0:00:15]} 50. Bxb5 {[%emt 0:01:45]} Rxg3+ {[%emt 0:00:29]} 51. Kh2 {[%emt 0:00:56]} Rb3 {[%emt 0:03:58]} 52. Bc4 {[%emt 0:01:31]} Rb2+ {[%emt 0:00:11]} 53. Kg3 {[%emt 0:00:57]} Rc2 {[%emt 0:01:07]} 54. Bd3 {[%emt 0:00:22]} Rb2 {[%emt 0:02:34]} 55. Rxf7 {[%emt 0:01:32]} Rxb4 {[%emt 0:00:10]} 56. Re7 {[%emt 0:00:35]} Rb3 {[%emt 0:02:11]} 57. Rxe5+ {[%emt 0:00:40]} g5 {[%emt 0:00:01]} 58. hxg5 {[%emt 0:00:52]} hxg5 {[%emt 0:00:10]} 59. Rd5 {[%emt 0:00:37]} Ne2+ {[%emt 0:00:07]} 60. Kf2 {[%emt 0:00:53]} Nf4 {[%emt 0:00:04]} 61. Be2+ {[%emt 0:01:02]} Kh4 {[%emt 0:00:20]} 62. Rd8 {[%emt 0:02:13]} Nh3+ {[%emt 0:00:16]} 63. Kf1 {[%emt 0:00:40]} Rb4 {[%emt 0:04:57]} 64. Rh8+ {[%emt 0:00:33]} 1-0

[Event "55th Rubinstein Memorial-A 2019"]
[Site "Polanica-Zdroj"]
[Date "2019.08.22"]
[Round "6.26"]
[White "Luberanski, Jakub"]
[Black "Gromczak, Dariusz"]
[Result "1-0"]
[ECO "B06"]
[WhiteElo "1996"]
[BlackElo "1812"]
[Annotator "NA"]
[PlyCount "53"]
[EventDate "2019.08.17"]
[EventType "swiss"]
[EventCountry "POL"]
[SourceTitle "playchess.com"]
[Source "ChessBase"]
[SourceQuality "1"]
[TimeControl "40/5400+30:1800+30"]

1. e4 {[%emt 0:00:00]} g6 {[%emt 0:00:00]} 2. d4 {[%emt 0:00:00]} Bg7 {[%emt 0:00:03]} 3. Nc3 {[%emt 0:00:00]} d6 {[%emt 0:00:15]} 4. f4 {[%emt 0:00:11]} e6 {[%emt 0:03:22]} 5. Nf3 {[%emt 0:01:02]} Ne7 {[%emt 0:00:37]} 6. Bd3 {[%emt 0:02:16]} d5 {[%emt 0:02:37]} 7. e5 {[%emt 0:00:29]} Nd7 {[%emt 0:00:43]} 8. O-O {[%emt 0:01:51]} a6 {[%emt 0:03:44]} 9. Be3 {[%emt 0:05:37]} b6 {[%emt 0:00:39]} 10. Ne2 {[%emt 0:01:37]} c5 {[%emt 0:01:53]} 11. c3 {[%emt 0:00:35]} Bb7 {[%emt 0:03:05]} 12. Rc1 {[%emt 0:03:25]} O-O {[%emt 0:03:43]} 13. Qe1 {[%emt 0:02:46]} f6 {[%emt 0:00:53]} 14. g4 {[%emt 0:07:26]} fxe5 {[%emt 0:02:59]} 15. fxe5 {[%emt 0:01:47]} Rxf3 {[%emt 0:05:38]} 16. Rxf3 {[%emt 0:00:06]} Nxe5 {[%emt 0:02:56]} 17. dxe5 {[%emt 0:01:55]} d4 18. Rh3 {[%emt 0:23:13]} dxe3 {[%emt 0:12:15]} 19. Nf4 {[%emt 0:11:19]} Bxe5 {[%emt 0:06:21]} 20. Qh4 {[%emt 0:04:44]} Bxf4 {[%emt 0:04:21]} 21. Qxh7+ {[%emt 0:00:06]} Kf8 {[%emt 0:00:24]} 22. Rf1 e5 {[%emt 0:02:32]} 23. Qh8+ {[%emt 0:09:38]} Ng8 {[%emt 0:14:38]} 24. Bc4 {[%emt 0:00:49]} Bd5 {[%emt 0:03:02]} 25. Qxe5 {[%emt 0:01:01]} g5 {[%emt 0:03:39]} 26. Qf5+ {[%emt 0:05:47]} Ke8 {[%emt 0:08:15]} 27. Bxd5 {[%emt 0:01:08]} 1-0

[Event "55th Rubinstein Memorial-A 2019"]
[Site "Polanica-Zdroj"]
[Date "2019.08.22"]
[Round "6.27"]
[White "Rosol, Alexander"]
[Black "Wloch, Mikolaj"]
[Result "1/2-1/2"]
[ECO "B76"]
[WhiteElo "1968"]
[BlackElo "1771"]
[Annotator "NA"]
[PlyCount "106"]
[EventDate "2019.08.17"]
[EventType "swiss"]
[EventCountry "POL"]
[SourceTitle "playchess.com"]
[Source "ChessBase"]
[SourceQuality "1"]
[TimeControl "40/5400+30:1800+30"]

1. e4 {[%emt 0:00:00]} c5 {[%emt 0:00:00]} 2. Nf3 {[%emt 0:00:00]} d6 {[%emt 0:00:00]} 3. d4 {[%emt 0:00:00]} cxd4 {[%emt 0:00:00]} 4. Nxd4 {[%emt 0:00:00]} Nf6 {[%emt 0:00:00]} 5. Nc3 {[%emt 0:00:06]} g6 {[%emt 0:00:00]} 6. f3 {[%emt 0:00:10]} Bg7 {[%emt 0:00:00]} 7. Be3 {[%emt 0:00:08]} O-O {[%emt 0:00:06]} 8. Qd2 {[%emt 0:00:04]} Nc6 {[%emt 0:00:05]} 9. O-O-O {[%emt 0:00:06]} Nxd4 {[%emt 0:00:21]} 10. Bxd4 {[%emt 0:00:14]} Be6 {[%emt 0:00:04]} 11. Kb1 {[%emt 0:00:48]} Qc7 {[%emt 0:01:53]} 12. g4 {[%emt 0:03:05]} Rfc8 {[%emt 0:01:09]} 13. h4 {[%emt 0:00:28]} Qa5 {[%emt 0:02:15]} 14. a3 {[%emt 0:01:27]} h5 {[%emt 0:03:42]} 15. g5 {[%emt 0:03:24]} Nd7 {[%emt 0:00:47]} 16. Nd5 {[%emt 0:02:06]} Qd8 {[%emt 0:09:00]} 17. Bxg7 {[%emt 0:03:17]} Kxg7 {[%emt 0:00:07]} 18. f4 {[%emt 0:03:15]} Bxd5 {[%emt 0:05:41]} 19. exd5 {[%emt 0:07:57]} Rc5 {[%emt 0:06:13]} 20. Bh3 {[%emt 0:03:47]} Nb6 {[%emt 0:03:31]} 21. Qd4+ {[%emt 0:09:53]} Kg8 {[%emt 0:00:37]} 22. Qe4 {[%emt 0:01:59]} Nc4 23. f5 Qb6 24. b3 Nxa3+ 25. Kb2 Rxc2+ 26. Kxa3 Qc5+ 27. Qb4 Ra2+ 28. Kxa2 Qxb4 29. fxg6 fxg6 30. Be6+ Kh8 31. Rc1 a5 32. Rc4 Qd2+ 33. Kb1 b5 34. Rc2 Qb4 35. Rh3 a4 36. Rhc3 Rf8 37. Rc8 Qxb3+ 38. Ka1 Qa3+ 39. Kb1 Qb4+ 40. Ka2 Qb3+ 41. Ka1 Rxc8 42. Rxc8+ Kg7 43. Rg8+ Kh7 44. Rf8 Qc3+ 45. Ka2 Qc4+ 46. Ka1 Qd4+ 47. Ka2 Qd2+ 48. Ka1 Qe1+ 49. Ka2 Qe2+ 50. Ka1 Qe5+ 51. Ka2 Qh2+ 52. Ka1 Qh1+ 53. Ka2 Qg2+ 1/2-1/2

[Event "55th Rubinstein Memorial-A 2019"]
[Site "Polanica-Zdroj"]
[Date "2019.08.23"]
[Round "7.1"]
[White "Warakomski, Tomasz"]
[Black "Marszalek, Maciej"]
[Result "1-0"]
[ECO "C50"]
[WhiteElo "2497"]
[BlackElo "2295"]
[Annotator "ChessBase"]
[PlyCount "69"]
[EventDate "2019.08.17"]
[EventType "swiss"]
[EventCountry "POL"]
[SourceTitle "playchess.com"]
[Source "ChessBase"]
[SourceQuality "1"]
[TimeControl "40/5400+30:1800+30"]

1. e4 {[%emt 0:00:00]} e5 {[%emt 0:00:00]} 2. Nf3 {[%emt 0:00:19]} Nc6 {[%emt 0:00:36]} 3. Bc4 {[%emt 0:00:24]} Bc5 {[%emt 0:00:14]} 4. O-O {[%emt 0:00:23]} Nf6 {[%emt 0:00:55]} 5. d3 {[%emt 0:00:15]} d6 {[%emt 0:00:35]} 6. c3 {[%emt 0:00:24]} a6 {[%emt 0:02:25]} 7. a4 {[%emt 0:03:41]} h6 {[%emt 0:01:00]} 8. Re1 {[%emt 0:00:40]} O-O {[%emt 0:02:56]} 9. Nbd2 {[%emt 0:08:01]} Ba7 {[%emt 0:02:14]} 10. Nf1 Ne7 11. Ng3 {[%emt 0:08:49]} Ng6 {[%emt 0:01:42]} 12. Bb3 {[%emt 0:03:04]} Re8 {[%emt 0:01:18]} 13. h3 {[%emt 0:00:27]} Be6 {[%emt 0:06:21]} 14. d4 {[%emt 0:14:33]} c6 {[%emt 0:05:46]} 15. Be3 {[%emt 0:03:39]} Qc7 {[%emt 0:08:23]} 16. Bc2 {[%emt 0:12:25]} a5 {[%emt 0:01:37]} 17. Qe2 {[%emt 0:02:06]} Bb6 {[%emt 0:03:53]} 18. Rad1 {[%emt 0:00:54]} Rad8 {[%emt 0:00:16]} 19. Qf1 {[%emt 0:04:51]} Bc8 {[%emt 0:01:17]} 20. Bc1 {[%emt 0:03:39]} Qb8 {[%emt 0:01:47]} 21. b3 {[%emt 0:03:39]} Qa7 {[%emt 0:07:37]} 22. Bb2 {[%emt 0:00:04]} Qb8 {[%emt 0:07:48]} 23. Kh1 {[%emt 0:01:05]} Qa7 {[%emt 0:00:44]} 24. c4 {[%emt 0:02:36]} exd4 {[%emt 0:02:00]} 25. Nxd4 {[%emt 0:00:05]} Nf4 {[%emt 0:08:54]} 26. Re3 {[%emt 0:06:10]} Ne6 {[%emt 0:01:49]} 27. Ndf5 {[%emt 0:01:03]} Nh7 {[%emt 0:01:55]} 28. Red3 {[%emt 0:04:38]} Bxf2 {[%emt 0:06:01]} 29. Nh5 {[%emt 0:00:25]} Nhg5 {[%emt 0:04:41]} 30. R3d2 {[%emt 0:03:25]} Be3 {[%emt 0:03:35]} 31. Re2 {[%emt 0:00:04]} Nf4 {[%emt 0:01:27]} 32. Nxf4 {[%emt 0:04:39]} Nxe4 {[%emt 0:03:12]} 33. Bxe4 {[%emt 0:00:22]} Rxe4 {[%emt 0:00:10]} 34. Nxe3 {[%emt 0:00:06]} Rxe3 {[%emt 0:00:07]} 35. Bd4 {[%emt 0:00:05]} 1-0

[Event "55th Rubinstein Memorial-A 2019"]
[Site "Polanica-Zdroj"]
[Date "2019.08.23"]
[Round "7.2"]
[White "Grabarczyk, Miroslaw"]
[Black "Goluch, Piotr"]
[Result "1/2-1/2"]
[ECO "D37"]
[WhiteElo "2362"]
[BlackElo "2418"]
[Annotator "NA"]
[PlyCount "222"]
[EventDate "2019.08.17"]
[EventType "swiss"]
[EventCountry "POL"]
[SourceTitle "playchess.com"]
[Source "ChessBase"]
[SourceQuality "1"]
[TimeControl "40/5400+30:1800+30"]

1. d4 {[%emt 0:00:00]} Nf6 {[%emt 0:00:00]} 2. c4 {[%emt 0:00:00]} e6 {[%emt 0:00:00]} 3. Nf3 {[%emt 0:00:03]} d5 {[%emt 0:00:00]} 4. Nc3 {[%emt 0:00:19]} Be7 {[%emt 0:00:24]} 5. Bf4 {[%emt 0:00:46]} O-O {[%emt 0:00:17]} 6. e3 {[%emt 0:00:11]} b6 {[%emt 0:00:02]} 7. Be2 {[%emt 0:00:45]} Bb7 {[%emt 0:01:42]} 8. O-O {[%emt 0:01:59]} Nbd7 {[%emt 0:06:45]} 9. cxd5 {[%emt 0:14:53]} Nxd5 {[%emt 0:02:50]} 10. Nxd5 {[%emt 0:00:24]} Bxd5 {[%emt 0:03:19]} 11. Ne5 {[%emt 0:06:27]} Nxe5 {[%emt 0:00:23]} 12. Bxe5 {[%emt 0:00:12]} Bd6 {[%emt 0:00:41]} 13. Bxd6 {[%emt 0:02:42]} Qxd6 {[%emt 0:04:55]} 14. Bf3 {[%emt 0:13:56]} Rfd8 {[%emt 0:05:23]} 15. Rc1 {[%emt 0:11:07]} e5 {[%emt 0:08:22]} 16. Bxd5 {[%emt 0:06:34]} Qxd5 {[%emt 0:00:03]} 17. Qb3 {[%emt 0:00:21]} exd4 {[%emt 0:05:22]} 18. Rxc7 {[%emt 0:01:14]} Qxb3 {[%emt 0:01:14]} 19. axb3 {[%emt 0:00:07]} dxe3 {[%emt 0:03:15]} 20. fxe3 {[%emt 0:00:10]} f6 {[%emt 0:00:06]} 21. Rfc1 {[%emt 0:05:08]} Rd5 {[%emt 0:06:48]} 22. Rb7 {[%emt 0:04:32]} Rad8 {[%emt 0:00:37]} 23. Rcc7 {[%emt 0:00:17]} Rg5 {[%emt 0:00:06]} 24. Rxa7 {[%emt 0:00:30]} Rd1+ {[%emt 0:02:46]} 25. Kf2 {[%emt 0:00:11]} h5 {[%emt 0:00:02]} 26. Rc2 {[%emt 0:04:23]} Rf5+ {[%emt 0:02:30]} 27. Kg3 {[%emt 0:12:19]} Rd3 {[%emt 0:00:09]} 28. Re7 {[%emt 0:01:06]} Rxb3 {[%emt 0:00:04]} 29. h4 {[%emt 0:04:57]} Rb4 {[%emt 0:00:02]} 30. e4 {[%emt 0:00:15]} Rb3+ {[%emt 0:00:51]} 31. Rc3 {[%emt 0:02:23]} Rxc3+ {[%emt 0:00:17]} 32. bxc3 {[%emt 0:00:04]} Rc5 {[%emt 0:00:25]} 33. Kf4 {[%emt 0:01:28]} Rxc3 {[%emt 0:00:10]} 34. Rb7 {[%emt 0:01:05]} Rb3 {[%emt 0:00:50]} 35. g3 {[%emt 0:02:00]} Kh7 {[%emt 0:00:56]} 36. Rb8 {[%emt 0:00:27]} Kg6 {[%emt 0:02:19]} 37. Rd8 {[%emt 0:01:03]} b5 {[%emt 0:00:41]} 38. Rb8 {[%emt 0:00:30]} Rb1 {[%emt 0:00:19]} 39. Rb6 {[%emt 0:00:56]} b4 {[%emt 0:05:33]} 40. Rb7 {[%emt 0:00:00]} Rb3 {[%emt 0:00:00]} 41. Rb5 {[%emt 0:02:46]} Kh6 {[%emt 0:01:08]} 42. Rb6 {[%emt 0:00:36]} Rc3 {[%emt 0:01:10]} 43. e5 {[%emt 0:05:30]} Rc4+ {[%emt 0:00:05]} 44. Kf5 {[%emt 0:00:10]} Rc5 {[%emt 0:00:14]} 45. Rxb4 {[%emt 0:00:07]} Rxe5+ {[%emt 0:00:11]} 46. Kf4 {[%emt 0:00:06]} Re1 {[%emt 0:00:22]} 47. Kf3 {[%emt 0:00:36]} Kg6 {[%emt 0:00:08]} 48. Rb5 {[%emt 0:00:31]} Rf1+ {[%emt 0:00:17]} 49. Kg2 {[%emt 0:00:08]} Rf5 {[%emt 0:00:09]} 50. Rb7 {[%emt 0:00:06]} Re5 {[%emt 0:00:10]} 51. Kf3 {[%emt 0:00:12]} Kh7 {[%emt 0:00:16]} 52. Ra7 {[%emt 0:00:44]} Kg8 {[%emt 0:00:04]} 53. Rb7 {[%emt 0:00:21]} Kf8 {[%emt 0:00:05]} 54. Ra7 {[%emt 0:00:07]} Re7 {[%emt 0:00:04]} 55. Ra5 {[%emt 0:00:16]} g6 {[%emt 0:00:06]} 56. Ra6 {[%emt 0:00:23]} Kf7 {[%emt 0:00:04]} 57. Rb6 {[%emt 0:00:08]} Rd7 {[%emt 0:00:03]} 58. Ke4 {[%emt 0:01:30]} Ke7 {[%emt 0:00:03]} 59. Ra6 {[%emt 0:00:44]} Rd6 {[%emt 0:00:03]} 60. Ra7+ {[%emt 0:00:31]} Ke6 {[%emt 0:00:03]} 61. Rb7 {[%emt 0:05:50]} Ra6 {[%emt 0:00:12]} 62. Rb4 {[%emt 0:00:13]} g5 {[%emt 0:01:48]} 63. hxg5 {[%emt 0:00:43]} fxg5 {[%emt 0:00:03]} 64. Rb5 {[%emt 0:01:19]} Kf6 {[%emt 0:00:11]} 65. Kf3 {[%emt 0:00:08]} Ra3+ {[%emt 0:00:08]} 66. Kf2 {[%emt 0:00:18]} Rd3 {[%emt 0:00:03]} 67. Ra5 {[%emt 0:00:21]} Rd2+ {[%emt 0:00:20]} 68. Kf3 {[%emt 0:04:09]} Rd3+ {[%emt 0:00:03]} 69. Kf2 {[%emt 0:00:06]} Rd6 {[%emt 0:00:03]} 70. Kf3 {[%emt 0:00:12]} Re6 {[%emt 0:00:04]} 71. Rb5 {[%emt 0:00:46]} Re5 {[%emt 0:00:11]} 72. Rb8 {[%emt 0:00:34]} Ra5 {[%emt 0:00:19]} 73. Rf8+ {[%emt 0:00:51]} Ke5 {[%emt 0:00:13]} 74. Re8+ {[%emt 0:00:10]} Kd4 {[%emt 0:00:15]} 75. Re4+ {[%emt 0:04:05]} Kd5 {[%emt 0:00:06]} 76. Re8 {[%emt 0:00:07]} Ra3+ {[%emt 0:01:10]} 77. Kf2 {[%emt 0:00:19]} g4 {[%emt 0:01:40]} 78. Re7 {[%emt 0:01:15]} Rf3+ {[%emt 0:00:06]} 79. Kg2 {[%emt 0:00:06]} Rf5 {[%emt 0:00:24]} 80. Ra7 {[%emt 0:02:25]} Kc4 {[%emt 0:00:06]} 81. Ra4+ {[%emt 0:00:37]} Kb3 {[%emt 0:00:05]} 82. Rd4 {[%emt 0:00:19]} Kc3 {[%emt 0:00:09]} 83. Rd8 {[%emt 0:00:06]} Kc4 {[%emt 0:00:08]} 84. Rd1 {[%emt 0:01:37]} Rd5 {[%emt 0:01:39]} 85. Rc1+ {[%emt 0:00:08]} Kd3 {[%emt 0:00:04]} 86. Rd1+ {[%emt 0:00:06]} Ke4 {[%emt 0:00:04]} 87. Re1+ {[%emt 0:00:05]} Kf5 {[%emt 0:00:08]} 88. Re8 {[%emt 0:01:37]} Re5 {[%emt 0:00:09]} 89. Ra8 {[%emt 0:00:10]} Re2+ {[%emt 0:00:05]} 90. Kf1 {[%emt 0:00:12]} Rd2 {[%emt 0:00:11]} 91. Ra4 {[%emt 0:00:12]} Ke5 {[%emt 0:00:06]} 92. Rb4 {[%emt 0:01:23]} Rd4 {[%emt 0:00:04]} 93. Rb5+ {[%emt 0:00:38]} Ke4 {[%emt 0:00:05]} 94. Ke2 {[%emt 0:00:08]} Ra4 {[%emt 0:00:10]} 95. Rb2 {[%emt 0:00:20]} Rc4 {[%emt 0:01:55]} 96. Ra2 {[%emt 0:00:59]} Rb4 {[%emt 0:00:04]} 97. Rc2 {[%emt 0:01:34]} Rb3 {[%emt 0:00:04]} 98. Kf2 {[%emt 0:02:36]} Kd3 {[%emt 0:00:05]} 99. Re2 {[%emt 0:02:19]} Rb5 {[%emt 0:00:04]} 100. Re3+ {[%emt 0:00:19]} Kd4 {[%emt 0:00:05]} 101. Re8 {[%emt 0:01:58]} Rb2+ {[%emt 0:00:09]} 102. Kf1 {[%emt 0:00:14]} Rb3 {[%emt 0:00:23]} 103. Kf2 {[%emt 0:00:09]} Rf3+ {[%emt 0:00:03]} 104. Kg2 {[%emt 0:00:03]} Rf5 {[%emt 0:01:12]} 105. Ra8 {[%emt 0:00:22]} Rc5 {[%emt 0:00:05]} 106. Rd8+ {[%emt 0:00:45]} Ke4 {[%emt 0:00:07]} 107. Re8+ {[%emt 0:00:10]} Re5 {[%emt 0:00:04]} 108. Ra8 {[%emt 0:01:01]} Rd5 {[%emt 0:00:35]} 109. Re8+ {[%emt 0:00:31]} Kd3 {[%emt 0:00:04]} 110. Kf2 {[%emt 0:01:02]} Rf5+ {[%emt 0:00:04]} 111. Kg2 {[%emt 0:00:08]} Rc5 {[%emt 0:01:11]} 1/2-1/2

[Event "55th Rubinstein Memorial-A 2019"]
[Site "Polanica-Zdroj"]
[Date "2019.08.23"]
[Round "7.3"]
[White "Lewtak, Damian"]
[Black "Kosakowski, Jakub"]
[Result "1/2-1/2"]
[ECO "A05"]
[WhiteElo "2354"]
[BlackElo "2401"]
[Annotator "NA"]
[PlyCount "73"]
[EventDate "2019.08.17"]
[EventType "swiss"]
[EventCountry "POL"]
[SourceTitle "playchess.com"]
[Source "ChessBase"]
[SourceQuality "1"]
[TimeControl "40/5400+30:1800+30"]

1. Nf3 {[%emt 0:00:41]} Nf6 {[%emt 0:01:42]} 2. g3 {[%emt 0:00:21]} b6 {[%emt 0:02:02]} 3. Bg2 {[%emt 0:00:28]} Bb7 {[%emt 0:00:08]} 4. O-O {[%emt 0:00:26]} e6 {[%emt 0:00:09]} 5. b3 {[%emt 0:00:13]} Be7 {[%emt 0:00:43]} 6. Bb2 {[%emt 0:00:29]} O-O {[%emt 0:00:12]} 7. e3 {[%emt 0:00:21]} c5 {[%emt 0:00:46]} 8. c4 {[%emt 0:03:28]} d6 {[%emt 0:06:33]} 9. Nc3 {[%emt 0:06:16]} Nbd7 {[%emt 0:04:28]} 10. d4 {[%emt 0:02:36]} Ne4 {[%emt 0:02:05]} 11. Qe2 {[%emt 0:11:05]} Nxc3 {[%emt 0:07:21]} 12. Bxc3 {[%emt 0:00:07]} Be4 {[%emt 0:00:39]} 13. Rfd1 {[%emt 0:01:56]} Qc8 {[%emt 0:04:54]} 14. Ne5 {[%emt 0:17:40]} Nf6 {[%emt 0:06:45]} 15. Ng4 {[%emt 0:00:06]} Bxg2 {[%emt 0:04:13]} 16. Nxf6+ {[%emt 0:00:12]} Bxf6 {[%emt 0:00:05]} 17. Kxg2 {[%emt 0:00:04]} Qa6 {[%emt 0:06:15]} 18. Rac1 {[%emt 0:02:05]} cxd4 {[%emt 0:11:21]} 19. Bxd4 {[%emt 0:00:27]} Bxd4 {[%emt 0:00:14]} 20. Rxd4 {[%emt 0:00:15]} d5 {[%emt 0:00:07]} 21. Rc2 {[%emt 0:00:13]} dxc4 {[%emt 0:00:52]} 22. Qxc4 {[%emt 0:00:14]} Qa5 {[%emt 0:09:22]} 23. b4 {[%emt 0:05:51]} Qa4 {[%emt 0:05:09]} 24. b5 {[%emt 0:02:20]} Qxc4 {[%emt 0:04:45]} 25. Rdxc4 {[%emt 0:00:40]} a6 {[%emt 0:00:09]} 26. a4 {[%emt 0:02:34]} axb5 {[%emt 0:04:45]} 27. axb5 {[%emt 0:00:05]} Rfd8 {[%emt 0:00:25]} 28. Rc6 {[%emt 0:02:30]} Rab8 {[%emt 0:00:22]} 29. e4 {[%emt 0:08:08]} g6 {[%emt 0:00:08]} 30. R2c4 {[%emt 0:00:04]} Kg7 {[%emt 0:00:41]} 31. Ra4 {[%emt 0:01:25]} Rb7 {[%emt 0:01:28]} 32. Ra6 {[%emt 0:03:48]} Rd4 {[%emt 0:00:16]} 33. Raxb6 {[%emt 0:03:07]} Rxb6 {[%emt 0:00:16]} 34. Rxb6 {[%emt 0:00:12]} Rxe4 {[%emt 0:00:04]} 35. Rc6 {[%emt 0:00:13]} Rb4 {[%emt 0:00:30]} 36. b6 {[%emt 0:00:04]} Rb3 {[%emt 0:00:16]} 37. Kf1 {[%emt 0:00:35]} 1/2-1/2